Cogmind - Beta 10.1 @@@ ROGUE MODE // 2020.10.18 @ 15:24:33 Player: Shamgod Result: Self-destructed Performance ------------- Evolutions (1) 500 Regions Visited (3) 600 Robots Destroyed (24) 120 Value Destroyed (408) 408 Prototype IDs (0) 0 Alien Tech Used (0) 0 Bonus (0) 0 TOTAL SCORE: 1628 Bonus ------- None Cogmind --------- Core Integrity 195/400 Matter 300/300 Energy 81/100 System Corruption 0% Temperature Cool (0) Movement Treading (160) Location -9/Materials Parts ------- > --- POWER (1) -------- (None) > --- PROPULSION (3) --- Light Treads > --- UTILITY (3) ------ Cooling System Small Storage Unit Small Storage Unit > --- WEAPON (2) ------- (None) > --- INVENTORY (8) ---- Light Treads Aluminum Leg Improved Heat Sink Medium Matter Pod (100) Improved Signal Interpreter Improved Terrain Scanner Core Shielding Peak State ------------ > --- POWER ------------ Improved Ion Engine > --- PROPULSION ------- Light Treads Wheel Wheel > --- UTILITY ---------- Cooling System Small Storage Unit Small Storage Unit > --- WEAPON ----------- Particle Gun Light Assault Rifle > --- INVENTORY -------- Light Ion Engine Light Treads Aluminum Leg Improved Heat Sink Improved Signal Interpreter Improved Terrain Scanner [Rating: 13] Favorites ----------- Power Light Ion Engine Engine Light Ion Engine Propulsion Wheel Treads Light Treads Wheel Wheel Utility Small Storage Unit Device Cooling System Storage Small Storage Unit Weapon Light Assault Rifle Energy Gun Particle Gun Ballistic Gun Light Assault Rifle Build | -11 -10 -10 -9 ------- Run | Scr Mat Min Mat Slots Evolved 2 | . . . 2 Power . | . . . . Propulsion 1 | . . . 1 Utility 1 | . . . 1 Weapon . | . . . . Parts Attached 30 | 14 . 8 8 Power 7 | 4 . 1 2 Engine 7 | 4 . 1 2 Core . | . . . . Reactor . | . . . . Propulsion 9 | 5 . 2 2 Treads 1 | . . . 1 Leg . | . . . . Wheel 8 | 5 . 2 1 Hover . | . . . . Flight . | . . . . Utility 7 | 3 . 2 2 Device 4 | 2 . 1 1 Storage 3 | 1 . 1 1 Processor . | . . . . Hackware . | . . . . Protection . | . . . . Artifact . | . . . . Weapon 7 | 2 . 3 2 Energy Gun 5 | 1 . 2 2 Energy Cannon . | . . . . Ballistic Gun 2 | 1 . 1 . Ballistic Cannon . | . . . . Launcher . | . . . . Special Weapon . | . . . . Impact Weapon . | . . . . Slashing Weapon . | . . . . Piercing Weapon . | . . . . Special Melee Weapon . | . . . . Unidentified Prototypes . | . . . . Parts Lost 11 | . . 3 8 Power 3 | . . 1 2 Propulsion 4 | . . 1 3 Utility . | . . . . Weapon 4 | . . 1 3 Highest Loss Streak 6 | . . 3 6 Average Slot Usage (%) 91 | . 100 100 87 Engine 9 | . 14 14 7 Treads 3 | . . . 5 Wheel 24 | . 28 28 22 Device 9 | . 14 6 11 Storage 21 | . 14 22 22 Energy Gun 11 | . 14 14 9 Ballistic Gun 10 | . 14 14 8 Naked Turns . | . . . . Heaviest Build 21 | 13 13 16 21 Greatest Support 32 | 32 20 20 30 Greatest Overweight (x) 1 | . . . 1 Average Overweight (x) . | . . . . Largest Inventory Capacity 8 | 6 6 8 8 Average Capacity 7 | 5 6 7 7 Most Carried 8 | 6 6 8 8 Average Carried 6 | 4 6 6 6 Final Capacity 8 | 6 6 6 8 Final Carried 7 | 6 6 6 7 Class Distribution -------------------- 54% | Mutant 45% | Scavenger-Mutant Dominant Class ---------------- Mutant | -10/Materials Mutant | -10/Mines Scavenger-Mutant | -9/Materials Resources | -11 -10 -10 -9 ----------- Run | Scr Mat Min Mat Matter Collected 547 | 353 . 91 103 Remotely . | . . . . Salvage Created 936 | 276 . 330 330 Parts 48 | 23 . 16 9 Haulers Intercepted . | . . . . Recyclers Shooed 2 | . . . 2 Parts Field Recycled . | . . . . Retrieved Matter . | . . . . Parts Self-Destructed . | . . . . Prevented . | . . . . Kills | -11 -10 -10 -9 ------- Run | Scr Mat Min Mat Combat Hostiles Destroyed 11 | . . 5 6 Melee 1 | . . . 1 Guns 10 | . . 5 5 Classes Destroyed 7 | 3 . 3 1 Worker 3 | 2 . . 1 Builder 1 | . . 1 . Tunneler 5 | 5 . . . Recycler 4 | 1 . 2 1 Swarmer 3 | . . 3 . Grunt 7 | . . 2 5 Duelist 1 | . . . 1 Best Kill Streak 5 | 4 . 5 4 Combat Bots Only 5 | . . 5 3 Max Kills in Single Turn 1 | 1 . 1 1 Gunslinging . | . . . . Exploded . | . . . . Melee 1 | . . . 1 Uniques/NPCs Destroyed . | . . . . Combat | -11 -10 -10 -9 -------- Run | Scr Mat Min Mat Damage Taken 1163 | . . 374 789 Core 259 | . . 54 205 Absorbed by Shields . | . . . . Core Remaining (%) 89 | 100 . 78 . Volleys Fired 85 | 13 2 27 43 Largest 2 | 2 2 2 2 Hottest 115 | 60 60 85 115 Shots Fired 157 | 26 4 52 75 Gun 157 | 26 4 52 75 Cannon . | . . . . Launcher . | . . . . Special . | . . . . Kinetic 75 | 13 2 27 33 Thermal 54 | . . 12 42 Explosive . | . . . . Electromagnetic 28 | 13 2 13 . Robot Hit Streak 16 | 4 1 9 16 Robot Miss Streak 3 | 1 1 2 3 Penetration Max . | . . . . Secondary Targets 4 | . . 1 3 Max Gunslinging Chain 1 | . . 1 1 Shots Hit Robots 98 | 11 2 33 52 Core Hits 45 | 10 . 14 21 Critical Hits . | . . . . Critical Kills . | . . . . Critical Parts Destroyed . | . . . . Melee Attacks . | . . . . Impact . | . . . . Slashing . | . . . . Piercing . | . . . . Sneak Attacks . | . . . . Combat Hostiles . | . . . . Follow-up Attacks . | . . . . Damage Inflicted 1069 | 144 . 347 578 Guns 1049 | 144 . 347 558 Cannons . | . . . . Explosions . | . . . . Melee . | . . . . Ramming 20 | . . . 20 Kinetic 331 | 13 . 152 166 Thermal 474 | . . 82 392 Explosive . | . . . . Electromagnetic 244 | 131 . 113 . Impact . | . . . . Slashing . | . . . . Piercing . | . . . . Highest Corruption . | . . . . Average Corruption . | . . . . Corruption Purged . | . . . . Overload Shots . | . . . . Overflow Damage . | . . . . Projectiles . | . . . . Explosions . | . . . . Melee . | . . . . Knockbacks . | . . . . Impact . | . . . . Kinetic . | . . . . Secondary . | . . . . Self-Inflicted Damage . | . . . . Shots . | . . . . Rammed 14 | . . . 14 Targets Rammed 14 | . . . 14 Kicked . | . . . . Crushed . | . . . . Highest Temperature 163 | 40 20 163 7 Average Temperature 40 | 18 15 52 3 Received Heat Transfer 444 | . . 108 336 Siege Activations . | . . . . Robots Corrupted . | . . . . Combat Hostiles . | . . . . Parts Fried . | . . . . Impact Corruptions . | . . . . Robots Melted . | . . . . Combat Hostiles . | . . . . Parts Melted 2 | . . . 2 Heat Transferred 1147 | . . 222 925 Parts Sabotaged . | . . . . Parts Stolen . | . . . . Parts Stripped . | . . . . Power Chain Reactions . | . . . . Missiles Intercepted . | . . . . Alert | -11 -10 -10 -9 ------- Run | Scr Mat Min Mat Peak Influence 204 | 40 26 127 204 Initial 49 | . 26 9 49 Average 69 | 18 26 68 98 Maximum Alert Level 1 | . . . 1 Low Security (%) 98 | 100 100 100 97 Level 1 1 | . . . 2 Level 2 . | . . . . Level 3 . | . . . . Level 4 . | . . . . Level 5 . | . . . . High Security . | . . . . Max Security . | . . . . Squads Dispatched 1 | . 1 . . Investigation . | . . . . Extermination . | . . . . Reinforcement 1 | . 1 . . Assault . | . . . . Garrison . | . . . . Intercept . | . . . . Construction Impeded . | . . . . Haulers Reinforced . | . . . . Stealth | -11 -10 -10 -9 --------- Run | Scr Mat Min Mat Distress Signals 2 | . . . 2 Communications Jammed . | . . . . Distress Signals . | . . . . Times Spotted 22 | . 1 5 16 Peak Tracking Total 6 | . 1 5 6 Tactical Retreats 4 | . . . 4 Traps | -11 -10 -10 -9 ------- Run | Scr Mat Min Mat Traps Triggered . | . . . . Indirectly . | . . . . Trap Hack Attempts . | . . . . Triggered . | . . . . Disarmed . | . . . . Reprogrammed . | . . . . Reused . | . . . . Traps Extracted . | . . . . Installed . | . . . . Triggered . | . . . . Machines | -11 -10 -10 -9 ---------- Run | Scr Mat Min Mat Machines Disabled . | . . . . Max in Single Turn . | . . . . Machines Sabotaged . | . . . . Garrisons Compromised . | . . . . Overloaded Fab Kills . | . . . . Fab Network Shutdowns . | . . . . Hacking | -11 -10 -10 -9 --------- Run | Scr Mat Min Mat Machines Accessed 5 | . 1 1 3 Terminals 4 | . 1 1 2 Fabricators . | . . . . Repair Stations 1 | . . . 1 Recycling Units . | . . . . Scanalyzers . | . . . . Garrison Access . | . . . . Total Hacks 17 | . 3 6 8 Successful 11 | . 1 3 7 Failed 6 | . 2 3 1 Catastrophic 1 | . . 1 . Database Lockouts . | . . . . Manual 14 | . 3 6 5 Terminals 15 | . 3 6 6 Fabricators . | . . . . Repair Stations 2 | . . . 2 Recycling Units . | . . . . Scanalyzers . | . . . . Garrison Access . | . . . . Terminal Hacks 6 | . . 2 4 Record 1 | . . . 1 Robot Analysis 3 | . . 1 2 Branch Access Points 1 | . . . 1 Assault Status 1 | . . 1 . Fabricator Hacks . | . . . . Repair Station Hacks 2 | . . . 2 Scan Component 1 | . . . 1 Repair 1 | . . . 1 Recycling Unit Hacks . | . . . . Scanalyzer . | . . . . Garrison Access Hacks . | . . . . Unauthorized Hacks 3 | . 1 1 1 Terminals 3 | . 1 1 1 Botnet 3 | . 1 1 1 Fabricators . | . . . . Repair Stations . | . . . . Recycling Units . | . . . . Scanalyzers . | . . . . Garrison Access . | . . . . Data Cores Recovered . | . . . . Used . | . . . . Hacking Detections 3 | . 1 1 1 Full Trace Events 2 | . 1 1 . Feedback Events . | . . . . Feedback Blocked . | . . . . Robot Schematics Acquired . | . . . . Robots Built . | . . . . Matter . | . . . . Time . | . . . . Total Robot Build Rating . | . . . . Part Schematics Acquired . | . . . . Parts Built . | . . . . Matter . | . . . . Time . | . . . . Total Part Build Rating . | . . . . Parts Repaired 1 | . . . 1 Time 32 | . . . 32 Parts Recycled . | . . . . Recycled Matter . | . . . . Retrieved Matter . | . . . . Retrieved Components . | . . . . Parts Scanalyzed . | . . . . Part Schematics Acquired . | . . . . Parts Damaged . | . . . . Bothacking | -11 -10 -10 -9 ------------ Run | Scr Mat Min Mat Used RIF Installer . | . . . . Robots Hacked . | . . . . Non-combat . | . . . . Combat . | . . . . Robot Hacks Applied . | . . . . Relay Couplers Released . | . . . . Robots Rewired . | . . . . Allies Hacked . | . . . . Hacks Repelled . | . . . . Allies | -11 -10 -10 -9 -------- Run | Scr Mat Min Mat Total Allies . | . . . . Largest Group . | . . . . Highest-Rated Group . | . . . . Highest-Rated Ally . | . . . . Total Orders . | . . . . Ally Attacks . | . . . . Total Damage . | . . . . Kills . | . . . . Allies Corrupted . | . . . . Allies Melted . | . . . . Intel | -11 -10 -10 -9 ------- Run | Scr Mat Min Mat Robot Analysis Total 3 | . . 1 2 Derelict Logs Recovered 1 | . . 1 . Drone Launches . | . . . . Drone Recoveries . | . . . . Exploration | -11 -10 -10 -9 ------------- Run | Scr Mat Min Mat Turns Passed 939 | 209 55 211 464 Spaces Moved 564 | 148 45 135 236 Core 2 | 2 . . . Treads 36 | . . . 36 Legs . | . . . . Wheels 526 | 146 45 135 200 Hover . | . . . . Flight . | . . . . Fastest Speed 50 | 50 80 80 80 Average Speed 87 | 85 80 80 93 Slowest Speed 160 | 100 80 80 160 Overloaded Moves . | . . . . Propulsion Burnouts . | . . . . Robots Hopped . | . . . . Cave-ins Triggered . | . . . . Exploration Rate (%) 16 | 6 14 26 19 Regions Visited 3 Branch Regions 1 Pre-discovered Areas . | . . . . Known Exits Taken . | . . . . Unknown Exits Taken 3 | 1 1 1 . Scrap Searched 1 | . . 1 . Spaces Dug . | . . . . Terrain Destroyed . | . . . . Melee . | . . . . Projectile . | . . . . AOE . | . . . . Terrain Rammed . | . . . . Walls Destroyed . | . . . . Machines Disabled . | . . . . Actions | -11 -10 -10 -9 --------- Run | Scr Mat Min Mat Total 861 | 209 60 192 400 Wait 118 | . 14 10 94 Move 561 | 147 44 134 236 Hop . | . . . . Pick Up 31 | 18 . 8 5 Fast Attach 12 | 10 . 1 1 Attach 9 | . . 4 5 Detach . | . . . . Swap 9 | 4 . 3 2 Drop 22 | 17 . 5 . Fire 85 | 13 2 27 43 Melee . | . . . . Ram . | . . . . Kick . | . . . . Crush 14 | . . . 14 Escape Stasis . | . . . . Rewire . | . . . . Trap . | . . . . Miscellaneous . | . . . . Route ------- -11/Scrapyard -10/Materials -10/Mines (discovered 2 exits: *Mat x2) -9/Materials (discovered 2 exits: Min x2) History --------- Turn | Location | Event 44 | -11/Scrapyard | Discovered new exit (range 15) 210 | -11/Scrapyard | Entered Materials 253 | -10/Materials | Discovered new exit (range 15) 265 | -10/Materials | Entered Mines 291 | -10/Mines | Discovered new exit (range 5) 306 | -10/Mines | Build established: Mutant 328 | -10/Mines | Learned Materials terminal intel 394 | -10/Mines | Discovered new exit (range 13) 405 | -10/Mines | Lost 3 parts (1p1n1w) 476 | -10/Mines | Entered Materials 476 | -9/Materials | Evolved 2 slots: Propulsion x1, Utility x1 477 | -9/Materials | Loaded intel: 12 terminal locations 544 | -9/Materials | Identified exit to Mines 605 | -9/Materials | Repaired Particle Gun 683 | -9/Materials | Build established: Scavenger-Mutant 891 | -9/Materials | Lost 6 parts (2p2n2w) 938 | -9/Materials | Core integrity fell below 50% 940 | -9/Materials | Self-destructed Last Messages --------------- 00830_ Destroyed Tractor Beam. 00833_ K-01 Serf collects debris. 00837_ Acquired 10 matter. 00840_ K-01 Serf collects debris. 00844_ K-01 Serf destroyed. 00848_ U-05 Engineer builds a Door. 00854_ Particle Gun destroyed. 00855_ Acquired Med. Matter Pod. 00860_ Wheel destroyed. 00895_ Med. Laser destroyed. 00895_ Slammed into G-34 Mercenary. 00897_ G-34 Mercenary destroyed. 00898_ Acquired 12 matter. 00900_ Slammed into G-34 Mercenary. 00910_ R-06 Scavenger collects Sml. Laser. 00910_ R-06 Scavenger collects Aluminum Leg. 00910_ Slammed into R-06 Scavenger. 00914_ R-06 Scavenger collects Heat Sink. 00915_ Slammed into R-06 Scavenger. 00935_ K-01 Serf collects debris. Map ----- +----------------------------------------------------+ | ??????????"??????????????????????????????????????? | | ??????????T??????????????????????????????????????? | | ??????????"??????????????????????????????????????? | | ?????????????????????????????????????????????????? | | ??????????????????????????????????????????????T"?? | | ???????????????????????????????????????????????"?? | | ??????????????????????????????????? ???????????? | | ???????????????????? ???????????# #??????????? | | ????????????????????# ???????????# #??????????? | | ????????????????????# ???????????# #??????????? | | ????????????????????# ???????????# #??????????? | | ?????????????????""?# ??????????# #??????????? | | ?????????????????""?# ??????????# #??????????? | | ?????????????????"" # ??????????# ############ | | ?????????????????? # ??????????# | | ??????????????????? + ??????????# | | ????????????????????# ??????????# """" """" " | | ????????????????????# ??????????# """" """" " | | ??????????########### ########### """" """" " | | ????????? r | | ????????? % | | ????????? g%%% | | ???????????# ##### #+############## | | ??????????????????????# #% #?????# | | ??????????????????????# # !!#?????# | | ??????????????????????# @# % ! #?????# | | ??????????????????????# # %% #?????# ##### | | ??????????????????????# # %% ####### # | | ??????????????????????# # %%%""" # # # """ | | ??????????????????????# # %%%""" # # # """ | | ??????????????????????# u# %%""" # # %# """ | | ??????????????????????# # # """ # # | | ??????????????????????# ########## """ # # """ | | ??????????????????????# #????????# """ + + """ | | ??????????????????????# #????????# """ # # """ | | ??????????????????????r ?????????# """ # # | | ?????????????????????? ?????????# # # "" | | ?????????????????????? Y ?????????# " " # # "T | | ?????????????????????? ?????????# "R" # # "" | | ?????????????????????# ?????????# """ # # | | ???????????????????????###?????????####### ##### | | ?????????????????????????????????????????# | | ?????????T???????????????????????????????# ##### | | ?????????????????????????????????????????# #???? | | ?????????????????????????????????????????# #???? | | ????????????????????????????????????????## ##??? | | ????????????????????????????????????????# #??? | | ????????????????????????????????????????# #??? | | ????????????????????????????????????????# ???? | | ????????????????????????????????????????# ???? | +----------------------------------------------------+ Best States ------------- Heat Dissipation 50 Energy Generation 12 Energy Capacity 265 Matter Stores 300 Matter Capacity 300 Sight Range 16 Terrain Scan Range 16 Terrain Scan Density 10 Evasion (%) 44 Recoil Reduction 1 Item Schematics ----------------- None Robot Schematics ------------------ None Fabricated ------------ Nothing Alien Tech Used ----------------- None Achievements -------------- None Challenges ------------ None Game ------ Seed AlloyOpticalBarrier Manual? 0 Play Time 00:47:20 Cumulative 13.8 hours Start 2020.10.18 @ 14:21:47 End 2020.10.18 @ 15:24:33 Sessions 1 Manual Loads 0 Difficulty Rogue Special Mode None Game No. 21 Rogue 21 Adventurer 0 Explorer 0 Win Type - Total 0 Types 0/0/0/0/0/0/0/0/0 Lore% 13 Gallery% 17 Achievement% 14 Wizard Run 0 Options --------- ASCII 0 Keyboard 1 Movement Numpad Keybinds 0 Fullscreen 2 Font 16/Dina Map View 76x50 Tactical HUD 1 Map Filters NONE Filters NONE Steam 1 RUN: b6b40f92-70aa-4f8d-a5e9-c3d0c4a49939